bitfinex/quotes_BTCUSD_20241119
["timestamp","ask_amount","ask_price","bid_price","bid_amount"]
[1732003553783,0.13145679,91748.0,91741.0,0.023]
[1732003554216,0.13145679,91748.0,91747.0,0.108995]
[1732003554684,0.13145679,91748.0,91743.0,0.218]
[1732003554913,0.13145679,91748.0,91741.0,0.023]
[1732003555189,0.13145679,91748.0,91747.0,0.108995]
[1732003555869,0.13145679,91748.0,91745.0,0.108997]
[1732003556085,0.13145679,91748.0,91747.0,0.108995]
[1732003557002,0.13145679,91748.0,91743.0,0.108999]
[1732003557231,0.13145679,91748.0,91747.0,0.028]
[1732003558420,0.25215999,91748.0,91747.0,0.028]
[1732003558648,0.2507032,91748.0,91747.0,0.028]
[1732003559799,0.1417092,91748.0,91739.0,0.218009]
[1732003560030,0.00145679,91747.0,91743.0,0.108999]
[1732003560313,0.00145679,91747.0,91743.0,0.028]
[1732003560535,0.00145679,91747.0,91742.0,0.109001]
[1732003560766,0.00145679,91747.0,91742.0,0.109]
[1732003561000,0.00145679,91747.0,91742.0,0.109001]
[1732003561226,0.00145679,91747.0,91743.0,0.028]
[1732003561482,0.01,91746.0,91743.0,0.028]
[1732003561706,0.01,91746.0,91738.0,0.023]
[1732003561707,0.01,91743.0,91738.0,0.16347616]
[1732003561936,0.01,91743.0,91742.0,0.002]
[1732003562167,0.1317092,91748.0,91747.0,0.108995]
[1732003562418,0.1317092,91748.0,91742.0,0.002]
[1732003562876,0.1317092,91748.0,91744.0,0.108997]
[1732003563111,0.1317092,91748.0,91742.0,0.03]
[1732003563337,0.1317092,91748.0,91737.0,0.38148816]
[1732003563338,0.1317092,91748.0,91746.0,0.108995]
[1732003563565,0.1317092,91748.0,91747.0,0.108995]
[1732003564058,0.13316599,91748.0,91747.0,0.108995]
[1732003566964,0.05716599,91748.0,91747.0,0.136995]
[1732003567195,0.0017092,91748.0,91747.0,0.136995]
[1732003567615,0.0017092,91748.0,91747.0,0.159995]
[1732003572323,0.0017092,91748.0,91747.0,0.131995]
[1732003572764,0.0017092,91748.0,91747.0,0.159995]
[1732003572993,0.0017092,91748.0,91747.0,0.13375409]
[1732003573235,0.0017092,91748.0,91747.0,0.16175409]
[1732003573469,0.0017092,91748.0,91747.0,0.15975409]
[1732003573697,0.0017092,91748.0,91747.0,0.16075409]
[1732003575086,0.0017092,91748.0,91747.0,0.19560276]
[1732003575315,0.0017092,91748.0,91747.0,0.16075409]
[1732003577128,0.0017092,91748.0,91747.0,0.23665409]
[1732003578495,0.0017092,91748.0,91747.0,0.20865409]
[1732003578913,0.0017092,91748.0,91747.0,0.23565409]
[1732003579399,0.0017092,91748.0,91747.0,0.24465409]
[1732003579617,0.0017092,91748.0,91747.0,0.02706706]
[1732003579848,0.0017092,91748.0,91747.0,0.13606206]
[1732003582087,0.15170715,91765.0,91764.0,0.108975]
[1732003582533,0.01,91766.0,91764.0,0.108975]
[1732003582534,0.09784921,91766.0,91764.0,0.108975]
[1732003582984,0.09784921,91765.0,91764.0,0.10801277]
[1732003583461,0.01,91764.0,91763.0,0.108975]
[1732003583923,0.08083241,91766.0,91764.0,0.108975]
[1732003584135,0.08283241,91766.0,91764.0,0.136975]
[1732003584354,0.09789091,91765.0,91764.0,0.136975]
[1732003584792,0.09791198,91765.0,91764.0,0.136975]
[1732003585004,0.14371198,91765.0,91764.0,0.136975]
[1732003585212,0.14371198,91765.0,91764.0,0.108975]
[1732003585655,0.0458,91765.0,91764.0,0.108975]
[1732003586314,0.0468,91765.0,91764.0,0.136975]
[1732003587049,0.06720195,91765.0,91764.0,0.136975]
[1732003587277,0.07720195,91765.0,91764.0,0.028]
[1732003587718,0.06720195,91765.0,91764.0,0.028]
[1732003587940,0.07720195,91765.0,91764.0,0.028]
[1732003590337,0.22410557,91765.0,91764.0,0.136975]
[1732003590553,0.22410557,91765.0,91764.0,0.028]
[1732003590817,0.07720195,91765.0,91764.0,0.028]
[1732003591027,0.438734,91765.0,91764.0,0.028]
[1732003591471,0.22411199,91765.0,91764.0,0.028]
[1732003591923,0.27307501,91765.0,91764.0,0.028]
[1732003592150,0.63460588,91765.0,91764.0,0.028]
[1732003592368,0.62460588,91765.0,91764.0,0.028]
[1732003593025,0.62460588,91765.0,91764.0,0.136975]
[1732003593237,0.38293282,91765.0,91764.0,0.136975]
[1732003593669,0.16827048,91765.0,91764.0,0.136975]
[1732003593883,0.16827048,91765.0,91764.0,0.184475]
[1732003593884,0.02140195,91765.0,91764.0,0.184475]
[1732003594314,0.001,91765.0,91764.0,0.184475]
[1732003595397,0.02140585,91765.0,91764.0,0.184475]
[1732003595822,0.02140585,91765.0,91764.0,0.028]
[1732003596303,0.02140585,91765.0,91764.0,0.136975]
[1732003596527,0.02140585,91765.0,91764.0,0.1378293]
[1732003596528,0.001,91765.0,91764.0,0.1378293]
[1732003596789,0.02310911,91765.0,91764.0,0.1378293]
[1732003597004,0.13053241,91769.0,91764.0,0.1378293]
[1732003597238,0.13053241,91769.0,91765.0,0.108973]
[1732003597457,0.13053241,91769.0,91764.0,0.0288543]
[1732003597688,0.08083241,91769.0,91764.0,0.1378283]
[1732003597915,0.08083241,91769.0,91765.0,0.108973]
[1732003598394,0.08083241,91769.0,91764.0,0.1378283]
[1732003598825,0.09790119,91771.0,91764.0,0.1098283]
[1732003599268,0.001,91769.0,91764.0,0.1378283]
[1732003599487,0.001,91769.0,91764.0,0.0288543]
[1732003599759,0.001,91769.0,91765.0,0.108973]
[1732003599970,0.09954503,91772.0,91765.0,0.108973]
[1732003600206,0.09954503,91772.0,91764.0,0.0008543]
[1732003600443,0.001,91771.0,91764.0,0.1378283]
[1732003600652,0.20851103,91772.0,91765.0,0.108973]
[1732003601299,0.09954503,91772.0,91766.0,0.108972]
[1732003601773,0.09954503,91772.0,91765.0,0.108973]
[1732003601981,0.09954503,91772.0,91765.0,0.136973]
[1732003602214,0.001,91769.0,91765.0,0.136973]
[1732003602428,0.09783583,91770.0,91765.0,0.108973]
[1732003602633,0.1106742,91772.0,91765.0,0.108973]
[1732003602846,0.09783583,91771.0,91766.0,0.028]
[1732003603095,0.1106742,91772.0,91765.0,0.108973]
[1732003603595,0.001,91769.0,91765.0,0.136973]
[1732003603807,0.1106742,91772.0,91764.0,0.0008543]
[1732003604023,0.0017092,91772.0,91764.0,0.0008543]
[1732003604241,0.109967,91771.0,91766.0,0.028]
[1732003604466,0.001,91771.0,91766.0,0.028]
[1732003606020,0.20851003,91772.0,91764.0,0.1098283]
[1732003606513,0.20951003,91772.0,91765.0,0.136973]
[1732003606750,0.20851003,91772.0,91765.0,0.108973]
[1732003606963,0.20851003,91772.0,91764.0,0.0008543]
[1732003606964,0.09883583,91771.0,91768.0,0.108969]
[1732003607182,0.09783583,91771.0,91764.0,0.0008543]
[1732003607416,0.09783583,91770.0,91766.0,0.108972]
[1732003607842,0.0027092,91772.0,91766.0,0.108972]
[1732003607843,0.09783583,91771.0,91766.0,0.108972]
[1732003608265,0.08083241,91768.0,91764.0,0.0008543]
[1732003608496,0.20680983,91765.0,91764.0,0.0008543]
[1732003608717,0.108974,91765.0,91764.0,0.0008543]
[1732003608940,0.14675375,91765.0,91764.0,0.0008543]
[1732003609160,0.16713933,91765.0,91764.0,0.1098293]
[1732003609386,0.11818486,91765.0,91764.0,0.0008543]
[1732003609602,0.11816954,91765.0,91764.0,0.1098293]
[1732003609834,0.02138558,91765.0,91764.0,0.1378293]
[1732003610778,0.02138558,91765.0,91764.0,0.0288543]
[1732003611233,0.11916926,91765.0,91764.0,0.0288543]
[1732003611463,0.1680611,91765.0,91764.0,0.0288543]
[1732003611682,0.02138558,91765.0,91764.0,0.0288543]
[1732003612199,0.09779252,91765.0,91764.0,0.1378293]
[1732003612452,0.09779252,91766.0,91764.0,0.0288543]
[1732003612728,0.09779252,91765.0,91764.0,0.0288543]
[1732003613631,0.09779252,91765.0,91764.0,0.0008543]
[1732003613858,0.09779252,91765.0,91764.0,0.0288543]
[1732003614067,0.09779252,91765.0,91764.0,0.0008543]
[1732003615142,0.097778,91765.0,91764.0,0.0008543]
[1732003615360,0.097778,91767.0,91765.0,0.108974]
[1732003615606,0.097778,91768.0,91767.0,0.108971]
[1732003615843,0.097778,91769.0,91768.0,0.10897]
[1732003616056,0.0017092,91773.0,91770.0,0.108968]
[1732003616057,0.097778,91771.0,91770.0,0.108968]
[1732003617377,0.0994872,91772.0,91770.0,0.108968]
[1732003617607,0.0994872,91772.0,91771.0,0.108966]
[1732003617608,0.0017092,91772.0,91771.0,0.108966]
[1732003618312,0.0017092,91772.0,91771.0,0.191166]
[1732003619401,0.0027092,91772.0,91771.0,0.219166]
[1732003620672,0.0017092,91772.0,91771.0,0.191166]
[1732003620875,0.0027092,91772.0,91771.0,0.219166]
[1732003621483,0.0027092,91772.0,91771.0,0.265266]
[1732003623341,0.0017092,91772.0,91771.0,0.237266]
[1732003623549,0.0027092,91772.0,91771.0,0.265266]
[1732003624132,0.0017092,91772.0,91771.0,0.237266]
[1732003624374,0.0027092,91772.0,91771.0,0.265266]
[1732003625731,0.0027092,91772.0,91771.0,0.267266]
[1732003625942,0.0017092,91772.0,91771.0,0.239266]
[1732003626388,0.0017092,91772.0,91771.0,0.237266]
[1732003626620,0.0017092,91772.0,91771.0,0.277266]
[1732003626857,0.0017092,91772.0,91771.0,0.249266]
[1732003627092,0.08083241,91777.0,91772.0,0.108965]
[1732003627321,0.08083241,91777.0,91771.0,0.1283]
[1732003627322,0.08083241,91777.0,91773.0,0.108963]
[1732003627542,0.11817393,91776.0,91775.0,0.108962]
[1732003627964,0.02038221,91776.0,91775.0,0.108962]
[1732003629525,0.02038221,91776.0,91775.0,0.136962]
[1732003630860,0.02038221,91776.0,91775.0,0.265862]
[1732003631548,0.09951872,91784.0,91783.0,0.108952]
[1732003631788,0.0017086,91784.0,91783.0,0.108952]
[1732003632004,0.02209176,91784.0,91783.0,0.108952]
[1732003633166,0.02209176,91784.0,91783.0,0.136952]
[1732003633628,0.0017086,91784.0,91783.0,0.136952]
[1732003635403,0.09951872,91784.0,91783.0,0.136952]
[1732003636343,0.0017086,91784.0,91783.0,0.215852]
[1732003638094,0.0017086,91784.0,91783.0,0.136952]
[1732003638985,0.16877298,91784.0,91776.0,0.10896]
[1732003639215,0.09773287,91782.0,91776.0,0.10896]
[1732003639438,0.08083241,91781.0,91772.0,0.435862]
[1732003639683,0.08083241,91781.0,91777.0,0.108959]
[1732003639913,0.08083241,91781.0,91772.0,0.217931]
[1732003640141,0.08083241,91781.0,91777.0,0.108958]
[1732003640370,0.21011828,91781.0,91774.0,0.108962]
[1732003640592,0.18978741,91781.0,91776.0,0.028]
[1732003640810,0.08083241,91781.0,91771.0,0.17347616]
[1732003641019,0.08083241,91781.0,91773.0,0.217929]
[1732003641243,0.08083241,91781.0,91777.0,0.028]
[1732003642127,0.108958,91778.0,91777.0,0.028]
[1732003642341,0.7086929,91778.0,91777.0,0.028]
[1732003642591,0.108971,91767.0,91762.0,0.16347616]
[1732003643053,0.09768809,91769.0,91762.0,0.16347616]
[1732003643237,0.09768809,91770.0,91762.0,0.16347616]
[1732003643539,0.09768809,91770.0,91764.0,0.1098283]
[1732003643794,0.09768809,91770.0,91764.0,0.0008543]
[1732003644032,0.09768809,91770.0,91766.0,0.0297086]
[1732003644261,0.09768809,91770.0,91766.0,0.0017086]
[1732003644481,0.09767315,91770.0,91766.0,0.0017086]
[1732003645163,0.20664115,91770.0,91766.0,0.0017086]
[1732003645389,0.108971,91768.0,91766.0,0.0017086]
[1732003645616,0.108971,91768.0,91766.0,0.0297086]
[1732003646111,0.108971,91767.0,91766.0,0.0297086]
[1732003646333,0.108971,91767.0,91766.0,0.0017086]
[1732003646749,0.108971,91767.0,91766.0,0.0297086]
[1732003646983,0.108971,91767.0,91766.0,0.02715084]
[1732003647472,0.21794,91768.0,91764.0,0.0008543]
[1732003647943,0.108974,91765.0,91764.0,0.0008543]
[1732003648839,0.239074,91765.0,91764.0,0.0008543]
[1732003649067,0.34813655,91765.0,91764.0,0.0008543]
[1732003649695,0.34813655,91765.0,91764.0,0.0288543]
[1732003652053,0.44580839,91765.0,91764.0,0.0288543]
[1732003653457,0.34813655,91765.0,91764.0,0.0288543]
[1732003655451,0.38065623,91765.0,91764.0,0.0288543]
[1732003656166,0.61788375,91765.0,91764.0,0.0288543]
[1732003656371,0.75091102,91765.0,91764.0,0.0288543]
[1732003656585,0.94610451,91765.0,91764.0,0.0288543]
[1732003657016,0.83713051,91765.0,91764.0,0.0008543]
[1732003657236,0.53702094,91765.0,91764.0,0.0008543]
[1732003657458,0.3906561,91765.0,91764.0,0.0008543]
[1732003657681,0.3906561,91765.0,91764.0,0.0288543]
[1732003663523,0.3906463,91765.0,91764.0,0.0288543]
[1732003664639,0.75072662,91765.0,91764.0,0.0288543]
[1732003664885,0.94592011,91765.0,91764.0,0.0288543]
[1732003665094,0.75072662,91765.0,91764.0,0.0288543]
[1732003665300,0.99471848,91765.0,91764.0,0.0288543]
[1732003665512,0.99449873,91765.0,91764.0,0.0288543]
[1732003666198,0.75067188,91765.0,91764.0,0.0288543]
[1732003666637,0.83150429,91765.0,91764.0,0.0288543]
[1732003667092,0.10899,91751.0,91750.0,0.16347616]
[1732003667536,0.108992,91750.0,91747.0,0.0008545]
[1732003667988,0.14149875,91753.0,91748.0,0.0463]
[1732003668200,0.217973,91755.0,91748.0,0.0463]
[1732003668426,0.108993,91749.0,91748.0,0.0463]
[1732003668644,0.03250975,91753.0,91748.0,0.0463]
[1732003668867,0.108991,91750.0,91748.0,0.0463]
[1732003669109,0.31549303,91757.0,91748.0,0.0463]
[1732003669110,0.108991,91751.0,91750.0,0.007]
[1732003669558,0.217974,91754.0,91748.0,0.0463]
[1732003669791,0.108993,91749.0,91748.0,0.0553]
[1732003670011,0.220976,91753.0,91748.0,0.0803]
[1732003670238,0.108992,91750.0,91748.0,0.0463]
[1732003670909,0.217976,91753.0,91748.0,0.0463]
[1732003671134,0.108993,91749.0,91748.0,0.0463]
[1732003671564,0.108991,91751.0,91748.0,0.0463]
[1732003672001,0.217978,91752.0,91748.0,0.0463]
[1732003672215,0.03253633,91754.0,91748.0,0.0553]
[1732003672216,0.217974,91754.0,91748.0,0.0553]
[1732003672444,0.108992,91750.0,91748.0,0.0553]
[1732003672666,0.108992,91750.0,91748.0,0.0463]
[1732003673109,0.108992,91750.0,91748.0,0.0553]
[1732003673373,0.03253633,91753.0,91748.0,0.164294]
[1732003673597,0.003,91750.0,91748.0,0.0713]
[1732003673810,0.003,91750.0,91748.0,0.0803]
[1732003674279,0.14152533,91753.0,91748.0,0.0553]
[1732003674498,0.108987,91754.0,91748.0,0.0553]
[1732003674704,0.14452433,91753.0,91748.0,0.0803]
[1732003674908,0.03253633,91752.0,91748.0,0.0463]
[1732003675115,0.03253633,91754.0,91748.0,0.0463]
[1732003675321,0.003,91750.0,91748.0,0.0803]
[1732003675761,0.003,91750.0,91748.0,0.0713]
[1732003675962,0.003,91750.0,91749.0,0.190793]
[1732003676688,0.108984,91756.0,91749.0,0.0818]
[1732003676853,0.003,91754.0,91749.0,0.0818]
[1732003677730,0.108984,91756.0,91749.0,0.0818]
[1732003678186,0.003,91750.0,91749.0,0.1068]
[1732003678405,0.108984,91756.0,91749.0,0.0818]
[1732003678612,0.003,91754.0,91749.0,0.1068]
[1732003679479,0.003,91754.0,91749.0,0.1148]
[1732003679915,0.003,91754.0,91749.0,0.1068]
[1732003680142,0.108985,91756.0,91749.0,0.0818]
[1732003680351,0.111985,91756.0,91749.0,0.1148]
[1732003680765,0.108985,91756.0,91749.0,0.198792]
[1732003681024,0.003,91754.0,91749.0,0.1148]
[1732003681264,0.108985,91755.0,91749.0,0.0898]
[1732003681697,0.108985,91755.0,91749.0,0.1068]
[1732003681946,0.108985,91755.0,91749.0,0.0898]
[1732003682162,0.108985,91755.0,91750.0,0.01702855]
[1732003682384,0.217964,91758.0,91750.0,0.01702855]
[1732003682837,0.108985,91756.0,91750.0,0.01702855]
[1732003683062,0.108985,91756.0,91749.0,0.190792]
[1732003683325,0.003,91754.0,91749.0,0.215792]
[1732003683554,0.108985,91756.0,91749.0,0.215792]
[1732003683555,0.108985,91756.0,91750.0,0.007]
[1732003683765,0.108985,91756.0,91750.0,0.032]
[1732003684227,0.21796,91760.0,91750.0,0.115991]
[1732003684228,0.108983,91757.0,91750.0,0.115991]
[1732003684429,0.03,91751.0,91750.0,0.115991]
[1732003684643,0.03,91751.0,91750.0,0.236291]
[1732003684866,0.003,91756.0,91750.0,0.1273]
[1732003685114,0.108987,91754.0,91750.0,0.1523]
[1732003685323,0.006,91756.0,91750.0,0.1055]
[1732003685760,0.006,91756.0,91750.0,0.1125]
[1732003685971,0.108988,91753.0,91750.0,0.1125]
[1732003686216,0.108989,91752.0,91750.0,0.0875]
[1732003686405,0.217974,91754.0,91750.0,0.1055]
[1732003686666,0.003,91751.0,91750.0,0.1055]
[1732003686902,0.003,91751.0,91750.0,0.025]
[1732003687133,0.217973,91755.0,91748.0,0.0017086]
[1732003687353,0.217973,91755.0,91750.0,0.007]
[1732003687354,0.108989,91753.0,91750.0,0.007]
[1732003687778,0.326961,91754.0,91750.0,0.032]
[1732003688015,0.108989,91752.0,91750.0,0.007]
[1732003688216,0.108988,91753.0,91750.0,0.007]
[1732003688434,0.10899,91751.0,91750.0,0.007]
[1732003688876,0.003,91755.0,91748.0,0.0267086]
[1732003689330,0.003,91755.0,91750.0,0.007]
[1732003689518,0.10899,91751.0,91750.0,0.007]
[1732003689998,0.10899,91751.0,91750.0,0.0008543]
[1732003689999,0.326972,91751.0,91750.0,0.0008543]
[1732003690227,0.326972,91751.0,91750.0,0.0288543]
[1732003690455,0.326972,91751.0,91750.0,0.0008543]
[1732003690902,0.328972,91751.0,91750.0,0.0288543]
[1732003691127,0.4753373,91751.0,91750.0,0.0288543]
[1732003691349,0.47547709,91751.0,91750.0,0.0288543]
[1732003691804,0.328972,91751.0,91750.0,0.0358543]
[1732003692912,0.68952988,91751.0,91750.0,0.0288543]
[1732003693127,0.68752988,91751.0,91750.0,0.0008543]
[1732003693347,0.69152988,91751.0,91750.0,0.0288543]
[1732003694000,0.330972,91751.0,91750.0,0.0288543]
[1732003694216,0.69153836,91751.0,91750.0,0.0288543]
[1732003694664,0.68953836,91751.0,91750.0,0.0288543]
[1732003694895,0.69253836,91751.0,91750.0,0.0288543]
[1732003696060,0.77130826,91751.0,91750.0,0.0288543]
[1732003696309,0.93409018,91751.0,91750.0,0.0288543]
[1732003696748,0.96666273,91751.0,91750.0,0.0288543]
[1732003696982,0.73873571,91751.0,91750.0,0.0288543]
[1732003697440,0.84779826,91751.0,91750.0,0.0288543]
[1732003698095,0.83417346,91751.0,91750.0,0.0288543]
[1732003698313,0.80160091,91751.0,91750.0,0.0288543]
[1732003698530,1.07838882,91751.0,91750.0,0.0288543]
[1732003699380,1.07839641,91751.0,91750.0,0.0288543]
[1732003700032,0.83417061,91751.0,91750.0,0.0288543]
[1732003700274,0.83417045,91751.0,91750.0,0.0288543]
[1732003700492,0.25562209,91751.0,91750.0,0.0288543]
[1732003700710,0.0579249,91751.0,91750.0,0.1075543]
[1732003702094,0.10963692,91752.0,91750.0,0.1075543]
[1732003702283,0.10899,91751.0,91750.0,0.1075543]
[1732003702566,0.10963692,91752.0,91750.0,0.1075543]
[1732003702787,0.09771202,91752.0,91750.0,0.1075543]
[1732003703459,0.09771202,91752.0,91751.0,0.15579]
[1732003703672,0.09771202,91752.0,91751.0,0.0468]
[1732003703886,0.003,91752.0,91751.0,0.0468]
[1732003704143,0.01662347,91752.0,91751.0,0.0468]
[1732003705708,0.01362347,91752.0,91751.0,0.0468]
[1732003705919,0.01562347,91752.0,91751.0,0.0748]
[1732003707294,0.96349221,91752.0,91751.0,0.028]
[1732003707515,0.70450833,91752.0,91751.0,0.028]
[1732003708843,0.70450833,91752.0,91751.0,0.03]
[1732003709271,0.68888486,91752.0,91751.0,0.002]
[1732003709484,0.71588486,91752.0,91751.0,0.004]
[1732003709691,0.75096547,91752.0,91751.0,0.004]
[1732003709945,0.91029788,91752.0,91751.0,0.004]
[1732003710163,0.82946547,91752.0,91751.0,0.002]
[1732003710396,0.83646547,91752.0,91751.0,0.004]
[1732003711517,0.120991,91750.0,91749.0,0.0008544]
[1732003711749,1.06429275,91750.0,91749.0,0.0008544]
[1732003712002,0.83577876,91750.0,91749.0,0.0008544]
[1732003712247,0.218994,91748.0,91747.0,5.112e-05]
[1732003712420,0.72105263,91748.0,91747.0,5.112e-05]
[1732003712717,0.73467991,91748.0,91747.0,5.112e-05]
[1732003713419,1.02752051,91748.0,91747.0,5.112e-05]
[1732003713867,1.02752051,91748.0,91734.0,0.16347616]
[1732003713868,0.01,91738.0,91734.0,0.16347616]
[1732003714096,0.75800477,91737.0,91734.0,0.16347616]
[1732003714320,0.109015,91731.0,91727.0,0.05016474]
[1732003714540,0.05286748,91730.0,91727.0,0.05016474]
[1732003714761,0.05286748,91729.0,91727.0,0.05016474]
[1732003714974,0.05286748,91728.0,91727.0,0.05016474]
[1732003716352,0.06949476,91728.0,91727.0,0.34484856]
[1732003716594,0.02332921,91728.0,91727.0,0.40964856]
[1732003716800,0.03252588,91737.0,91736.0,0.01]
[1732003717049,0.07118423,91763.0,91751.0,0.1256]
[1732003717267,0.01362322,91755.0,91754.0,0.108986]
[1732003717486,0.10906255,91762.0,91754.0,0.108986]
[1732003717704,0.10906255,91762.0,91751.0,0.1256]
[1732003717930,0.10906255,91762.0,91755.0,0.108984]
[1732003718176,0.10906255,91762.0,91756.0,0.108983]
[1732003718385,0.10906255,91762.0,91751.0,0.1256]
[1732003718386,0.0017086,91765.0,91764.0,0.108975]
[1732003720646,0.0017086,91765.0,91764.0,0.136975]
[1732003721775,0.0017086,91765.0,91764.0,0.108975]
[1732003722202,0.0017086,91765.0,91764.0,0.136975]
[1732003722386,0.0017086,91765.0,91764.0,0.108975]
[1732003722661,0.0017086,91765.0,91764.0,0.140975]
[1732003723113,0.0017086,91765.0,91764.0,0.136975]
[1732003723364,0.0017086,91765.0,91764.0,0.139975]
[1732003727608,0.0017086,91765.0,91764.0,0.031]
[1732003727943,0.0017086,91765.0,91764.0,0.139975]
[1732003728863,0.02201238,91765.0,91764.0,0.139975]
[1732003729289,0.02201238,91765.0,91760.0,0.217959]
[1732003729527,0.0017086,91765.0,91764.0,0.108975]
[1732003732399,0.0017086,91765.0,91764.0,0.111975]
[1732003734565,0.0017086,91765.0,91764.0,0.14798074]
[1732003737243,0.02198999,91765.0,91764.0,0.111975]
[1732003737447,0.0017086,91765.0,91764.0,0.111975]
[1732003737657,0.0219889,91765.0,91764.0,0.111975]
[1732003741767,0.0219889,91765.0,91764.0,0.19275803]
[1732003742002,0.0219889,91765.0,91764.0,0.27354106]
[1732003742234,0.0219889,91765.0,91764.0,0.19275803]
[1732003742946,0.02202285,91765.0,91764.0,0.19275803]
[1732003745343,0.05458939,91765.0,91764.0,0.19275803]
[1732003746401,0.05462234,91765.0,91764.0,0.19275803]
[1732003747032,0.1429528,91777.0,91776.0,0.10896]
[1732003747493,0.02670272,91780.0,91779.0,0.108957]
[1732003749332,0.0403221,91780.0,91779.0,0.108957]
[1732003751054,0.14938465,91780.0,91760.0,0.03516102]
[1732003751260,0.10897,91769.0,91765.0,0.16347616]
[1732003751499,0.217931,91772.0,91762.0,0.16347616]
[1732003751723,0.108967,91771.0,91763.0,0.108976]
[1732003751957,0.108967,91771.0,91759.0,0.2188165]
[1732003752165,0.108967,91771.0,91764.0,0.108974]
[1732003752389,0.08078303,91771.0,91760.0,0.006]
[1732003752630,0.10897,91768.0,91765.0,0.026]
[1732003752856,0.003,91769.0,91760.0,0.006]
[1732003753109,0.108971,91768.0,91763.0,0.026]
[1732003753323,0.01362164,91767.0,91763.0,0.026]
[1732003753546,0.01362164,91766.0,91763.0,0.026]
[1732003753770,0.01362164,91765.0,91763.0,0.026]
[1732003753984,0.01362164,91764.0,91763.0,0.026]
[1732003754199,0.01362164,91764.0,91759.0,0.0008545]
[1732003754428,0.0136216,91763.0,91759.0,0.0008545]
[1732003754671,0.18976203,91760.0,91759.0,0.0008545]
[1732003754903,0.23166315,91760.0,91759.0,0.0008545]
[1732003755576,0.32073675,91760.0,91759.0,0.0268545]
[1732003755794,0.28816315,91760.0,91759.0,0.0008545]
[1732003756047,0.37526315,91760.0,91759.0,0.0008545]
[1732003756277,0.37526315,91760.0,91759.0,0.0268545]
[1732003756278,0.60604532,91760.0,91759.0,0.0268545]
[1732003756750,0.64191806,91760.0,91759.0,0.0268545]
[1732003757193,0.128984,91756.0,91755.0,0.0008545]
[1732003757399,0.28421831,91756.0,91755.0,0.0008545]
[1732003758492,0.36291831,91756.0,91755.0,0.0008545]
[1732003758704,0.46031992,91756.0,91755.0,0.0008545]
[1732003758909,0.46331992,91756.0,91755.0,0.0268545]
[1732003759130,0.38623507,91756.0,91755.0,0.0268545]
[1732003759407,0.48363936,91756.0,91755.0,0.0268545]
[1732003759620,0.38623507,91756.0,91755.0,0.0268545]
[1732003760049,0.48363936,91756.0,91755.0,0.0268545]
[1732003760279,0.48363936,91756.0,91755.0,0.0278545]
[1732003760505,0.3861662,91756.0,91755.0,0.0278545]
[1732003761432,0.53226862,91756.0,91755.0,0.0278545]
[1732003761653,0.3861662,91756.0,91755.0,0.0278545]
[1732003762089,0.2671822,91756.0,91755.0,0.0278545]
[1732003762523,0.3761662,91756.0,91755.0,0.0278545]
[1732003763175,0.47361817,91756.0,91755.0,0.0278545]
[1732003763657,0.47359514,91756.0,91755.0,0.0278545]
[1732003764116,0.3761662,91756.0,91755.0,0.0278545]
[1732003765238,0.4761662,91756.0,91755.0,0.0278545]
[1732003765468,0.4781662,91756.0,91755.0,0.0278545]
[1732003765685,0.57354049,91756.0,91755.0,0.0278545]
[1732003765953,0.4761662,91756.0,91755.0,0.0278545]
[1732003766565,0.4949747,91756.0,91755.0,0.0278545]
[1732003767235,0.5086007,91756.0,91755.0,0.0278545]
[1732003767667,0.4949747,91756.0,91755.0,0.0288545]
[1732003767879,0.5086007,91756.0,91755.0,0.0288545]
[1732003768102,0.4949747,91756.0,91755.0,0.0288545]
[1732003768346,0.4625402,91756.0,91755.0,0.0288545]
[1732003768926,0.4761662,91756.0,91755.0,0.0288545]
[1732003769287,0.01,91746.0,91730.0,0.16347616]
[1732003769496,0.109014,91731.0,91730.0,0.16347616]
[1732003769698,0.12931925,91731.0,91730.0,0.16347616]
[1732003769936,0.02030525,91731.0,91722.0,0.0816]
[1732003770165,0.218025,91733.0,91722.0,0.0816]
[1732003770166,0.109018,91728.0,91722.0,0.0816]
[1732003770384,0.02030525,91727.0,91722.0,0.0816]
[1732003770599,0.02030525,91726.0,91722.0,0.0816]
[1732003770817,0.02030525,91725.0,91722.0,0.0816]
[1732003771018,0.02030525,91724.0,91722.0,0.0816]
[1732003771151,0.02030525,91723.0,91722.0,0.0816]
[1732003772004,0.003,91725.0,91722.0,0.0816]
[1732003772212,0.109016,91729.0,91722.0,0.0816]
[1732003772213,0.02024844,91724.0,91722.0,0.0816]
[1732003772484,0.02324844,91723.0,91722.0,0.190625]
[1732003772653,0.02324844,91723.0,91722.0,0.0926]
[1732003773055,0.02324844,91723.0,91722.0,0.0816]
[1732003773258,0.003,91723.0,91722.0,0.0816]
[1732003773454,0.003,91723.0,91722.0,0.0916]
[1732003773779,0.02325198,91723.0,91722.0,0.0924545]
[1732003773963,0.02325198,91723.0,91722.0,0.0824545]
[1732003774164,0.02325198,91723.0,91722.0,0.0924545]
[1732003774165,0.02125198,91723.0,91722.0,0.0924545]
[1732003774399,0.001,91723.0,91722.0,0.0924545]
[1732003774578,0.02125432,91723.0,91722.0,0.0924545]
[1732003774961,0.02425432,91723.0,91722.0,0.0924545]
[1732003775164,0.004,91723.0,91722.0,0.0924545]
[1732003775368,0.02424828,91723.0,91722.0,0.0924545]
[1732003775758,0.004,91723.0,91722.0,0.0924545]
[1732003775939,0.02424827,91723.0,91722.0,0.0924545]
[1732003776418,0.02424827,91723.0,91722.0,0.0108545]
[1732003776850,0.25318421,91732.0,91722.0,0.0108545]
[1732003777052,0.218028,91731.0,91722.0,0.0108545]
[1732003777463,0.25318421,91732.0,91722.0,0.0108545]
[1732003777677,0.218031,91730.0,91722.0,0.0108545]
[1732003778551,0.109018,91728.0,91722.0,0.0108545]
[1732003778759,0.109023,91723.0,91722.0,0.0108545]
[1732003779022,0.25048278,91723.0,91722.0,0.0008545]
[1732003779471,0.25048278,91723.0,91722.0,0.0128545]
[1732003779907,0.03239723,91723.0,91722.0,0.0008545]
[1732003780129,0.03239723,91723.0,91722.0,0.0128545]
[1732003780359,0.03339723,91723.0,91722.0,0.0128545]
[1732003781221,0.03639723,91723.0,91722.0,0.0128545]